bitfinex/quotes_BTCUSD_20251205
["timestamp","ask_amount","ask_price","bid_price","bid_amount"]
[1764961532163,0.23611203,88941.0,88937.0,0.00011913]
[1764961532164,0.22487354,88939.0,88937.0,0.00011913]
[1764961532938,0.22487575,88938.0,88937.0,0.00011913]
[1764961533151,0.22487575,88938.0,88937.0,0.00311913]
[1764961533355,0.23611425,88940.0,88937.0,0.22799655]
[1764961533578,0.23611425,88940.0,88937.0,0.22660836]
[1764961534007,0.0112434,88941.0,88938.0,0.22487475]
[1764961534338,0.23611224,88941.0,88937.0,0.23785227]
[1764961534464,0.23611224,88941.0,88938.0,0.22487548]
[1764961534672,0.01792,88942.0,88941.0,0.22486817]
[1764961534873,0.22484009,88953.0,88948.0,0.01124252]
[1764961534874,0.01124189,88953.0,88948.0,0.01124252]
[1764961535081,0.25400348,88952.0,88949.0,0.01124239]
[1764961535279,0.25400348,88952.0,88948.0,0.25964771]
[1764961535280,0.22484794,88949.0,88948.0,0.02355525]
[1764961535504,0.22484541,88950.0,88948.0,0.04303943]
[1764961535706,0.02916201,88952.0,88948.0,0.04303943]
[1764961535883,0.01124176,88954.0,88951.0,0.01274]
[1764961536128,0.22484036,88952.0,88951.0,0.01274]
[1764961536337,0.22584036,88952.0,88951.0,0.01274]
[1764961536884,0.22484036,88952.0,88951.0,0.01274]
[1764961538047,0.22483783,88953.0,88951.0,0.01274]
[1764961538473,0.22483783,88953.0,88952.0,0.0532963]
[1764961539154,0.22484036,88952.0,88951.0,0.00161287]
[1764961539532,0.22484036,88952.0,88951.0,0.00361287]
[1764961539707,0.22484036,88952.0,88951.0,0.00161287]
[1764961540520,0.22483783,88953.0,88951.0,0.01435287]
[1764961540713,0.22483783,88953.0,88952.0,0.01274]
[1764961541221,0.22483783,88953.0,88952.0,0.10520108]
[1764961541419,0.22483783,88953.0,88952.0,0.10320108]
[1764961541782,0.22484036,88952.0,88951.0,0.002]
[1764961541984,0.22484541,88950.0,88949.0,0.1488]
[1764961542433,0.23608445,88954.0,88949.0,0.1488]
[1764961542634,0.23607443,88955.0,88954.0,0.02194238]
[1764961542944,0.2248353,88954.0,88953.0,0.01274]
[1764961543151,0.2248353,88954.0,88953.0,0.03468238]
[1764961543501,0.23604808,88965.0,88957.0,0.01124138]
[1764961543708,0.323,88968.0,88965.0,0.01124037]
[1764961543916,0.323,88968.0,88967.0,0.02194238]
[1764961543917,0.03375871,88968.0,88967.0,0.02194238]
[1764961544113,0.22479992,88968.0,88967.0,0.02194238]
[1764961544363,0.25395769,88969.0,88965.0,0.23604568]
[1764961544535,0.01123974,88970.0,88968.0,0.01274]
[1764961544734,0.22480245,88967.0,88966.0,0.06555834]
[1764961544968,0.22479992,88968.0,88966.0,0.08750072]
[1764961545817,0.22579992,88968.0,88966.0,0.08750072]
[1764961546306,0.22480245,88967.0,88966.0,0.08750072]
[1764961546641,0.002,88968.0,88967.0,0.22480245]
[1764961546920,0.002,88968.0,88967.0,0.3140863]
[1764961547254,0.001,88968.0,88967.0,0.3140863]
[1764961547783,0.25394714,88973.0,88969.0,0.23603489]
[1764961547957,0.25394714,88973.0,88972.0,0.00927]
[1764961548159,0.22479611,88970.0,88967.0,0.06380385]
[1764961548383,0.22479761,88969.0,88967.0,0.00161287]
[1764961548828,0.22481003,88964.0,88963.0,0.01274]
[1764961549162,0.23607215,88956.0,88951.0,0.01124214]
[1764961549367,0.01124151,88956.0,88953.0,0.22483604]
[1764961549564,0.01124201,88952.0,88949.0,0.00927]
[1764961549773,0.0112429,88945.0,88938.0,0.01124378]
[1764961550090,0.22486385,88943.0,88940.0,0.22487032]
[1764961550420,0.22486385,88943.0,88941.0,0.04627269]
[1764961550745,0.22486385,88943.0,88942.0,0.00927]
[1764961550918,0.01124315,88943.0,88942.0,0.00927]
[1764961551118,0.01124315,88943.0,88942.0,0.01088287]
[1764961551335,0.0112429,88945.0,88942.0,0.23574603]
[1764961551485,0.23609966,88946.0,88944.0,0.02194238]
[1764961552066,0.23609966,88946.0,88938.0,0.00011913]
[1764961552067,0.22487322,88939.0,88938.0,0.00011913]
[1764961552273,0.26123322,88939.0,88938.0,0.00011913]
[1764961552721,0.32100322,88939.0,88938.0,0.00011913]
[1764961552920,0.22487322,88939.0,88938.0,0.00011913]
[1764961553232,0.22487113,88940.0,88938.0,0.00011913]
[1764961553454,0.01792,88939.0,88938.0,0.00011913]
[1764961553936,0.01792,88939.0,88938.0,0.001732]
[1764961554140,0.01892,88939.0,88938.0,0.001732]
[1764961555040,0.01992,88939.0,88938.0,0.001732]
[1764961555220,0.01892,88939.0,88938.0,0.001732]
[1764961555417,0.01792,88939.0,88938.0,0.001732]
[1764961555619,0.01792,88939.0,88938.0,0.05138038]
[1764961555820,0.01792,88939.0,88938.0,0.05338038]
[1764961556853,0.01124265,88947.0,88944.0,0.23610324]
[1764961557061,0.01124265,88947.0,88944.0,0.05954182]
[1764961557062,0.224853,88947.0,88944.0,0.05954182]
[1764961557227,0.22485805,88945.0,88944.0,0.00161287]
[1764961557432,0.22485604,88946.0,88944.0,0.00161287]
[1764961557627,0.22485805,88945.0,88944.0,0.00769005]
[1764961558195,0.22485553,88946.0,88944.0,0.00769005]
[1764961558424,0.22485553,88946.0,88944.0,0.00161287]
[1764961559536,0.001,88946.0,88944.0,0.2264728]
[1764961559700,0.001,88946.0,88945.0,0.22485805]
[1764961559897,0.22485805,88945.0,88944.0,0.00161287]
[1764961560133,0.22585554,88946.0,88944.0,0.00161287]
[1764961560328,0.22585554,88946.0,88938.0,0.06101129]
[1764961560329,0.22487322,88939.0,88938.0,0.00011913]
[1764961560577,0.28836322,88939.0,88938.0,0.00011913]
[1764961560751,0.34813322,88939.0,88938.0,0.00011913]
[1764961560962,0.25200322,88939.0,88938.0,0.00011913]
[1764961561279,0.22487322,88939.0,88938.0,0.00011913]
[1764961561480,0.24279322,88939.0,88938.0,0.00011913]
[1764961561688,0.0337698,88946.0,88938.0,0.00011913]
[1764961561689,0.0337698,88946.0,88944.0,0.22486058]
[1764961561860,0.01124239,88949.0,88945.0,0.0179629]
[1764961562064,0.01792,88951.0,88949.0,0.02194238]
[1764961562262,0.26319485,88959.0,88955.0,0.01124163]
[1764961562478,0.25398659,88958.0,88955.0,0.23607195]
[1764961562680,0.2360691,88957.0,88956.0,0.0247314]
[1764961563542,0.01792,88958.0,88956.0,0.0247314]
[1764961563905,0.22482772,88957.0,88956.0,0.0247314]
[1764961564108,0.01124201,88952.0,88949.0,0.03318477]
[1764961564334,0.22484541,88950.0,88949.0,0.02294238]
[1764961564540,0.22484896,88949.0,88947.0,0.01124265]
[1764961564751,0.22484896,88949.0,88948.0,0.02194238]
[1764961565158,0.23609135,88949.0,88948.0,0.00595507]
[1764961565363,0.23609135,88949.0,88948.0,0.03144714]
[1764961565564,0.32478135,88949.0,88948.0,0.00595507]
[1764961565737,0.32478135,88949.0,88938.0,0.00011913]
[1764961565738,0.22487322,88939.0,88938.0,0.00011913]
[1764961565945,0.33148322,88939.0,88938.0,0.00011913]
[1764961566258,0.27818322,88939.0,88938.0,0.00011913]
[1764961566920,0.27918322,88939.0,88938.0,0.00011913]
[1764961567127,0.33248322,88939.0,88938.0,0.00011913]
[1764961568036,0.27918322,88939.0,88938.0,0.00011913]
[1764961568207,0.24379322,88939.0,88938.0,0.00011913]
[1764961568609,0.24379322,88939.0,88938.0,0.02599247]
[1764961569179,0.24379322,88939.0,88938.0,0.00011913]
[1764961570456,0.27918322,88939.0,88938.0,0.00011913]
[1764961570832,0.24379322,88939.0,88938.0,0.00011913]
[1764961571154,0.001,88939.0,88938.0,0.027072]
[1764961571396,0.001,88939.0,88938.0,0.32607169]
[1764961571551,0.001,88939.0,88938.0,0.30388908]
[1764961572073,0.01124227,88950.0,88947.0,0.24679484]
[1764961572220,0.23608808,88950.0,88949.0,0.00596]
[1764961572423,0.23608572,88951.0,88949.0,0.01863]
[1764961572424,0.22484429,88951.0,88949.0,0.01863]
[1764961572642,0.23608489,88952.0,88950.0,0.01267]
[1764961572844,0.22484289,88951.0,88950.0,0.01267]
[1764961574071,0.23605907,88961.0,88957.0,0.01124138]
[1764961574242,0.01124113,88959.0,88953.0,0.02194238]
[1764961574444,0.22485623,88946.0,88944.0,0.00596]
[1764961574666,0.23609644,88947.0,88944.0,0.00596]
[1764961575002,0.22485568,88946.0,88944.0,0.00596]
[1764961575335,0.0112434,88941.0,88938.0,0.00011913]
[1764961575575,0.22487069,88940.0,88938.0,0.00011913]
[1764961576849,0.22487322,88939.0,88938.0,0.00011913]
[1764961577693,0.31356322,88939.0,88938.0,0.00911913]
[1764961577938,0.31356322,88939.0,88938.0,0.00011913]
[1764961578229,0.31356322,88939.0,88938.0,0.00042409]
[1764961578886,0.22587322,88939.0,88938.0,0.00042409]
[1764961579089,0.26126322,88939.0,88938.0,0.00042409]
[1764961579574,0.31456322,88939.0,88938.0,0.00042409]
[1764961580846,0.26126322,88939.0,88938.0,0.00042409]
[1764961581058,0.22587322,88939.0,88938.0,0.00042409]
[1764961581471,0.24379322,88939.0,88938.0,0.00042409]
[1764961582517,0.01892,88939.0,88938.0,0.00042409]
[1764961582900,0.0384825,88939.0,88938.0,0.00042409]
[1764961583314,0.01892,88939.0,88938.0,0.00042409]
[1764961583826,0.001,88939.0,88938.0,0.04286063]
[1764961584063,0.001,88939.0,88938.0,0.07747301]
[1764961585071,0.01792,88950.0,88947.0,0.01124265]
[1764961585234,0.24276541,88950.0,88949.0,0.01863]
[1764961585434,0.01792,88950.0,88949.0,0.01863]
[1764961585801,0.01124189,88953.0,88949.0,0.03148526]
[1764961586080,0.01124138,88957.0,88955.0,0.22483247]
[1764961586278,0.01124037,88965.0,88962.0,0.22481508]
[1764961586488,0.22479389,88971.0,88962.0,0.22481508]
[1764961586489,0.01123936,88973.0,88969.0,0.01123987]
[1764961586896,0.2360373,88971.0,88970.0,0.00672]
[1764961587094,0.22481256,88963.0,88962.0,0.00161287]
[1764961587270,0.22481256,88963.0,88962.0,0.04673912]
[1764961587883,0.2360814,88953.0,88950.0,0.01124227]
[1764961588081,0.01124113,88959.0,88951.0,0.01124214]
[1764961588246,0.22482267,88959.0,88958.0,0.01267]
[1764961588446,0.22482024,88960.0,88957.0,0.22482709]
[1764961588651,0.22482024,88960.0,88955.0,0.01124163]
[1764961588652,0.23605851,88961.0,88959.0,0.01267]
[1764961588862,0.0291605,88964.0,88962.0,0.24675668]
[1764961589053,0.01792,88964.0,88963.0,0.23748256]
[1764961589498,0.23602596,88974.0,88969.0,0.01123987]
[1764961589701,0.23601423,88978.0,88977.0,0.00722]
[1764961589914,0.23603133,88972.0,88970.0,0.02194238]
[1764961590245,0.23602931,88972.0,88971.0,0.02194238]
[1764961590455,0.01123923,88974.0,88971.0,0.02194238]
[1764961590611,0.01123923,88974.0,88971.0,0.00722]
[1764961590814,0.23602062,88976.0,88973.0,0.25394967]
[1764961591044,0.23601461,88978.0,88971.0,0.01285248]
[1764961591045,0.23601412,88978.0,88977.0,0.02194238]
[1764961591386,0.23601412,88978.0,88975.0,0.00722]
[1764961591387,0.22477971,88976.0,88975.0,0.00722]
[1764961591789,0.22478982,88972.0,88971.0,0.00161287]
[1764961592419,0.22478982,88972.0,88962.0,0.23605363]
[1764961592420,0.23606089,88961.0,88958.0,0.22482471]
[1764961592628,0.22482014,88960.0,88959.0,0.05053228]
[1764961593235,0.22482014,88960.0,88954.0,0.23607645]
[1764961593236,0.23606114,88960.0,88957.0,0.22482625]
[1764961593445,0.01124088,88961.0,88959.0,0.00722]
[1764961593641,0.22480628,88966.0,88960.0,0.00722]
[1764961593903,0.22481256,88963.0,88962.0,0.00722]
[1764961594270,0.22480628,88966.0,88963.0,0.22481256]
[1764961594529,0.01124012,88967.0,88963.0,0.22481256]
[1764961594530,0.23604257,88967.0,88963.0,0.22481256]
[1764961594665,0.01124012,88967.0,88964.0,0.23604985]
[1764961594866,0.01124012,88967.0,88965.0,0.22480728]
[1764961595298,0.01123999,88968.0,88966.0,0.22480415]
[1764961595499,0.01792,88969.0,88967.0,0.22479994]
[1764961595696,0.02915987,88969.0,88965.0,0.02194238]
[1764961595855,0.2360415,88968.0,88965.0,0.02194238]
[1764961596058,0.2360415,88968.0,88965.0,0.24674953]
[1764961596391,0.01792,88969.0,88967.0,0.00722]
[1764961596575,0.03963861,89002.0,88968.0,0.00883287]
[1764961596576,0.04499556,88982.0,88968.0,0.00883287]
[1764961596798,0.22487591,88982.0,88981.0,0.00722]
[1764961597163,0.01123961,88971.0,88963.0,0.1488]
[1764961597515,0.01123961,88971.0,88965.0,0.001]
[1764961597516,0.2247974,88969.0,88965.0,0.001]
[1764961597756,0.22481003,88964.0,88963.0,0.1488]
[1764961597963,0.23605405,88963.0,88960.0,0.011241]
[1764961598168,0.23605405,88963.0,88960.0,0.059578]
[1764961598376,0.22480816,88965.0,88962.0,0.22481508]
[1764961598496,0.01124037,88965.0,88961.0,0.23605849]
[1764961598700,0.22481128,88964.0,88961.0,0.23605849]
[1764961598901,0.22481303,88963.0,88961.0,0.01124088]
[1764961599109,0.22481303,88963.0,88962.0,0.0542937]
[1764961600007,0.01123974,88970.0,88966.0,0.23604363]
[1764961600152,0.01123974,88970.0,88962.0,0.0615137]
[1764961600153,0.23604243,88968.0,88965.0,0.01124037]
[1764961600359,0.23604243,88968.0,88964.0,0.02194238]
[1764961600360,0.23604485,88967.0,88964.0,0.02194238]
[1764961600561,0.2248075,88965.0,88964.0,0.02194238]
[1764961601413,0.22481122,88964.0,88962.0,0.01124075]
[1764961601611,0.22481122,88964.0,88963.0,0.02194238]
[1764961601936,0.22481122,88964.0,88963.0,0.09607867]
[1764961602582,0.001,88965.0,88964.0,0.22481003]
[1764961602782,0.001,88965.0,88964.0,0.25397241]
[1764961603463,0.23603742,88969.0,88966.0,0.23604362]
[1764961603637,0.01123923,88974.0,88971.0,0.22479163]
[1764961603844,0.01123949,88972.0,88969.0,0.02194238]
[1764961604307,0.01123987,88969.0,88966.0,0.01285311]
[1764961604513,0.01123974,88970.0,88967.0,0.01124012]
[1764961604669,0.22479804,88969.0,88967.0,0.01124012]
[1764961605015,0.22479804,88969.0,88966.0,0.27482514]
[1764961605016,0.23603791,88969.0,88966.0,0.27482514]
[1764961605220,0.23603791,88969.0,88966.0,0.0500208]
[1764961605792,0.22480245,88967.0,88966.0,0.0500208]
[1764961605997,0.01123949,88972.0,88966.0,0.0500208]
[1764961605998,0.01123898,88976.0,88968.0,0.00722]
[1764961606196,0.01123911,88975.0,88972.0,0.00722]
[1764961606382,0.23602135,88975.0,88974.0,0.02194238]
[1764961606584,0.22478476,88974.0,88973.0,0.00722]
[1764961607191,0.22478842,88973.0,88971.0,0.02194238]
[1764961607423,0.33423835,88981.0,88974.0,0.01123923]
[1764961607570,0.00011136,88982.0,88979.0,0.0152986]
[1764961607772,0.00011136,88982.0,88981.0,0.00406]
[1764961608564,0.00011136,88982.0,88981.0,0.3173265]
[1764961608772,0.00011136,88982.0,88981.0,0.34494175]
[1764961608975,0.00111136,88982.0,88981.0,0.32299937]
[1764961609211,0.00111136,88982.0,88981.0,0.31893937]
[1764961609413,0.00111136,88982.0,88981.0,0.32299937]
[1764961610116,0.00111136,88982.0,88981.0,0.34494175]
[1764961610318,0.00011136,88982.0,88981.0,0.34494175]
[1764961610634,0.00211136,88982.0,88981.0,0.34494175]
[1764961611041,0.00111136,88982.0,88981.0,0.34494175]
[1764961611252,0.00111136,88982.0,88981.0,0.04361525]
[1764961611586,0.31388591,88982.0,88981.0,0.017]
[1764961612178,0.31388591,88982.0,88981.0,0.016]
[1764961612378,0.63688591,88982.0,88981.0,0.016]
[1764961613518,0.63688591,88982.0,88968.0,0.01123999]
[1764961613519,0.22479292,88971.0,88968.0,0.23603807]
[1764961613896,0.2247888,88973.0,88970.0,0.22479487]
[1764961614120,0.236024,88974.0,88970.0,0.22479487]
[1764961614785,0.236024,88974.0,88971.0,0.22479187]
[1764961614981,0.236024,88974.0,88970.0,0.23603461]
[1764961614982,0.001,88971.0,88970.0,0.01123974]
[1764961615199,0.001,88973.0,88970.0,0.23603461]
[1764961615403,0.001,88973.0,88970.0,0.23603456]
[1764961615639,0.22478724,88974.0,88964.0,0.02194238]
[1764961615640,0.01124012,88967.0,88964.0,0.02194238]
[1764961615845,0.01123987,88969.0,88964.0,0.22481003]
[1764961615846,0.23604071,88968.0,88964.0,0.22481003]
[1764961616048,0.23702647,88974.0,88971.0,0.23603126]
[1764961616225,0.23702647,88974.0,88972.0,0.22478968]
[1764961616226,0.001,88974.0,88972.0,0.22478968]
[1764961616652,0.002,88974.0,88972.0,0.22478968]
[1764961616828,0.23602912,88973.0,88969.0,0.23603615]
[1764961617044,0.23603775,88969.0,88966.0,0.03318262]
[1764961617542,0.23603775,88969.0,88967.0,0.05237021]
[1764961617891,0.23603134,88972.0,88969.0,0.23603493]
[1764961618212,0.22479487,88970.0,88968.0,0.01123999]
[1764961618411,0.23603179,88972.0,88968.0,0.23603952]
[1764961618617,0.001,88969.0,88968.0,0.23603952]
[1764961619875,0.001,88969.0,88968.0,0.23805952]
[1764961620355,0.04675987,88969.0,88966.0,0.02194238]
[1764961620573,0.01123936,88973.0,88969.0,0.01123987]
[1764961620782,0.01788,88977.0,88974.0,0.01123923]
[1764961620992,0.01788,88977.0,88976.0,0.22477971]
[1764961621239,0.55911629,88982.0,88981.0,0.24670946]
[1764961621240,0.00011136,88982.0,88981.0,0.24670946]
[1764961621575,0.00011136,88982.0,88981.0,0.30142796]
[1764961621776,0.00011136,88982.0,88981.0,0.30344796]
[1764961621985,0.22477714,88978.0,88974.0,0.01123923]
[1764961622185,0.01123885,88977.0,88972.0,0.01123949]
[1764961622336,0.01123873,88978.0,88974.0,0.01123923]
[1764961622533,0.22478233,88975.0,88973.0,0.23602645]
[1764961622746,0.01788,88988.0,88979.0,0.0112386]
[1764961622968,0.01123709,88991.0,88981.0,0.22678708]
[1764961623144,0.23597593,88993.0,88981.0,0.22678708]
[1764961623368,0.01123582,89001.0,88981.0,0.25236233]
[1764961623572,0.01788,88997.0,88981.0,0.25236233]
[1764961623777,0.00211136,88982.0,88981.0,0.25236233]
[1764961623956,0.00211136,88982.0,88981.0,0.40116233]
[1764961624168,0.00211136,88982.0,88981.0,0.51086739]
[1764961624368,0.00011136,88982.0,88981.0,0.51086739]
[1764961624936,0.00111136,88982.0,88981.0,0.52386739]
[1764961625695,0.00111136,88982.0,88981.0,0.52184739]
[1764961625899,0.00111136,88982.0,88981.0,0.16543287]
[1764961627412,0.00111136,88982.0,88981.0,0.16643287]
[1764961627614,0.00111136,88982.0,88981.0,0.19039525]
[1764961627816,0.00111136,88982.0,88981.0,0.18635525]
[1764961628028,0.00111136,88982.0,88981.0,0.1628]
[1764961628237,0.00111136,88982.0,88981.0,0.014]
[1764961628238,0.10650386,88982.0,88981.0,0.014]
[1764961628776,0.05395386,88982.0,88981.0,0.014]
[1764961628927,0.05395386,88982.0,88981.0,0.013]
[1764961629129,0.10650386,88982.0,88981.0,0.013]
[1764961629899,0.01123961,88971.0,88968.0,0.1488]
[1764961630100,0.01123961,88971.0,88969.0,0.08788857]
[1764961630302,0.22479162,88972.0,88969.0,0.08788857]
[1764961630715,0.22479267,88971.0,88969.0,0.08788857]
[1764961631156,0.23601978,88976.0,88970.0,0.00202]
[1764961631359,0.22478844,88973.0,88971.0,0.00202]
[1764961631734,0.23603147,88972.0,88969.0,0.01561287]
[1764961631939,0.23603147,88972.0,88970.0,0.0894493]
[1764961632493,0.23602535,88974.0,88971.0,0.00202]
[1764961632699,0.22478822,88973.0,88971.0,0.00202]
[1764961632899,0.22479487,88970.0,88969.0,0.00161287]
[1764961634111,0.03000085,88991.0,88969.0,0.00161287]
[1764961634285,0.23603171,88972.0,88970.0,0.03977036]
[1764961634487,0.001,88970.0,88969.0,0.01863287]
[1764961634687,0.22579487,88970.0,88969.0,0.01963287]
[1764961635031,0.22579487,88970.0,88969.0,0.015]
[1764961635302,0.25907487,88970.0,88969.0,0.015]
[1764961635752,0.41314346,88970.0,88969.0,0.015]
[1764961635955,0.22484541,88950.0,88944.0,0.22485926]
[1764961636157,0.22484541,88950.0,88945.0,0.0112429]
[1764961636362,0.23607495,88955.0,88951.0,0.01124214]
[1764961636569,0.22482096,88960.0,88951.0,0.01124214]
[1764961636570,0.22481678,88962.0,88957.0,0.01124138]
[1764961636779,0.0112405,88964.0,88957.0,0.22482726]
[1764961636780,0.01124088,88961.0,88957.0,0.22482726]
[1764961636988,0.0112405,88964.0,88961.0,0.01124088]
[1764961637190,0.22482519,88958.0,88957.0,0.00161287]
[1764961637572,0.22482519,88958.0,88951.0,0.008]
[1764961637573,0.23608318,88952.0,88951.0,0.008]
[1764961637779,0.22484508,88951.0,88949.0,0.00596]
[1764961637978,0.01124163,88955.0,88950.0,0.01124227]
[1764961638165,0.01124163,88955.0,88953.0,0.22483781]
[1764961638515,0.2248303,88956.0,88953.0,0.22483781]
[1764961638516,0.23605856,88961.0,88956.0,0.22483025]
[1764961638717,0.01124062,88963.0,88958.0,0.01124125]
[1764961638883,0.2248153,88962.0,88960.0,0.22482]
[1764961639229,0.01124075,88962.0,88955.0,0.02194238]
[1764961639473,0.2360722,88956.0,88953.0,0.23769235]
[1764961639641,0.22483289,88955.0,88953.0,0.00161287]
[1764961640044,0.01124125,88958.0,88953.0,0.01285476]
[1764961640203,0.01124125,88958.0,88956.0,0.22483017]
[1764961640204,0.23606649,88958.0,88956.0,0.22483017]
[1764961641024,0.23605587,88962.0,88961.0,0.02194238]
[1764961641408,0.23605587,88962.0,88956.0,0.2264431]
[1764961641409,0.2360638,88959.0,88958.0,0.02194238]
[1764961641630,0.23605643,88962.0,88958.0,0.03318363]
[1764961641896,0.02555,88984.0,88958.0,0.03318363]
[1764961641897,0.22479476,88972.0,88969.0,0.01123987]
[1764961642066,0.23603247,88971.0,88968.0,0.02194238]
[1764961642269,0.2247974,88969.0,88968.0,0.02194238]
[1764961642418,0.01123936,88973.0,88970.0,0.00202]
[1764961642619,0.22478482,88974.0,88971.0,0.01123961]
[1764961642819,0.01123898,88976.0,88973.0,0.01325936]
[1764961643022,0.01123961,88971.0,88968.0,0.02194238]
[1764961643230,0.01123949,88972.0,88969.0,0.01123987]
[1764961643440,0.01123949,88972.0,88971.0,0.00202]
[1764961643855,0.23603159,88973.0,88971.0,0.00202]
[1764961644052,0.01123936,88973.0,88971.0,0.22681172]
[1764961644470,0.23902109,88976.0,88972.0,0.22680982]
[1764961644676,0.23902109,88976.0,88973.0,0.22680701]
[1764961645014,0.22478249,88975.0,88973.0,0.00202]
[1764961645424,0.22477718,88979.0,88974.0,0.23804399]
[1764961645425,0.22477549,88978.0,88974.0,0.23804399]
[1764961645606,0.22477549,88978.0,88975.0,0.00202]
[1764961645607,0.22477785,88977.0,88975.0,0.00202]
[1764961645965,0.00011136,88978.0,88977.0,0.22477718]
[1764961646334,0.00011136,88978.0,88977.0,0.25035243]
[1764961646452,0.00011136,88978.0,88977.0,0.25237243]
[1764961646653,0.00011136,88978.0,88977.0,0.22841005]
[1764961646868,0.00011136,88978.0,88977.0,0.25035243]
[1764961647069,0.00011136,88978.0,88977.0,0.35542867]
[1764961648037,0.00011136,88978.0,88977.0,0.35340867]
[1764961648238,0.00211136,88978.0,88977.0,0.37140867]
[1764961648437,0.00211136,88978.0,88977.0,0.37442867]
[1764961649330,0.00211136,88978.0,88977.0,0.35642867]
[1764961649515,0.00011136,88978.0,88977.0,0.35642867]
[1764961649740,0.00011136,88978.0,88977.0,0.37242867]
[1764961649741,0.00111136,88978.0,88977.0,0.37242867]
[1764961653633,0.00111136,88978.0,88977.0,0.36634629]
[1764961653841,0.00111136,88978.0,88977.0,0.38828867]
[1764961656709,0.00111136,88978.0,88977.0,0.53708867]
[1764961656911,0.01123507,89007.0,88999.0,0.22472162]
[1764961657109,0.20039696,89000.0,88999.0,0.3192803]
[1764961658513,0.20039696,89000.0,88999.0,0.33611352]
[1764961659125,0.20039696,89000.0,88999.0,0.3192803]
[1764961659511,0.20039696,89000.0,88999.0,0.29733792]
[1764961659835,0.20239696,89000.0,88999.0,0.29733792]
[1764961660047,0.20239696,89000.0,88999.0,0.3192803]
[1764961662479,0.20239696,89000.0,88999.0,0.29733792]
[1764961662686,0.20239696,89000.0,88999.0,0.3192803]
[1764961663326,0.0633803,89000.0,88999.0,0.3192803]
[1764961664704,0.00239175,89011.0,89010.0,0.22469385]
[1764961664911,0.0002,89040.0,89029.0,0.24658828]
[1764961665119,0.00031906,89030.0,89029.0,0.26608115]
[1764961665550,0.0002,89040.0,89029.0,0.26608115]
[1764961665551,0.0002,89040.0,89039.0,0.24656305]
[1764961665793,0.0002,89040.0,89039.0,0.24817592]
[1764961666697,0.0062,89040.0,89039.0,0.24817592]
[1764961666919,0.0002,89040.0,89039.0,0.24817592]
[1764961667358,0.0002,89040.0,89039.0,0.25417592]
[1764961667807,0.0002,89040.0,89039.0,0.25717592]
[1764961668438,0.0002,89050.0,89049.0,0.24653782]
[1764961668668,0.0002,89050.0,89049.0,0.26603069]
[1764961669805,0.0002,89050.0,89049.0,0.24815069]
[1764961670022,0.0062,89050.0,89049.0,0.24815069]
[1764961670459,0.0062,89050.0,89049.0,0.31915412]
[1764961670874,0.0062,89050.0,89049.0,0.0726163]
[1764961671114,0.0062,89050.0,89039.0,0.22461824]
[1764961671115,0.0112304,89044.0,89039.0,0.22461824]
[1764961671321,0.01123002,89047.0,89037.0,0.22462563]
[1764961671322,0.22460818,89045.0,89037.0,0.01788]
[1764961671535,0.0112309,89040.0,89036.0,0.01123141]
[1764961671804,0.01123078,89041.0,89036.0,0.01123141]
[1764961671805,0.22461386,89042.0,89039.0,0.01123103]
[1764961671993,0.0112309,89040.0,89039.0,0.05050124]
[1764961672435,0.01123078,89041.0,89038.0,0.01123115]
[1764961672608,0.2358342,89046.0,89042.0,0.2358425]
[1764961672920,0.2358342,89046.0,89044.0,0.02194238]
[1764961672921,0.01123015,89046.0,89044.0,0.02194238]
[1764961673116,0.23583221,89047.0,89045.0,0.02194238]
[1764961674553,0.02406,89051.0,89044.0,0.0112304]
[1764961674764,0.01122876,89057.0,89049.0,0.02194238]
[1764961674936,0.011228,89063.0,89049.0,0.00161287]
[1764961675148,0.01122813,89062.0,89049.0,0.02355525]
[1764961675387,0.01122888,89056.0,89049.0,0.02355525]
[1764961675576,0.01122926,89053.0,89049.0,0.02355525]
[1764961675777,0.01122901,89055.0,89049.0,0.02355525]
[1764961676120,0.01122914,89054.0,89049.0,0.02355525]
[1764961676321,0.01122939,89052.0,89049.0,0.02355525]
[1764961676529,0.23580997,89055.0,89049.0,0.02355525]
[1764961676711,0.01122888,89056.0,89049.0,0.02355525]
[1764961676936,0.01122901,89055.0,89049.0,0.02855525]
[1764961677365,0.00138733,89050.0,89049.0,0.02355525]
[1764961677572,0.00838733,89050.0,89049.0,0.21865174]
[1764961678449,0.00838733,89050.0,89049.0,0.06985174]
[1764961678658,0.00838733,89050.0,89049.0,0.07407383]
[1764961679073,0.00838733,89050.0,89049.0,0.07519548]
[1764961679493,0.00138733,89050.0,89049.0,0.07519548]
[1764961679718,0.00138733,89050.0,89049.0,0.09044032]
[1764961680139,0.00138733,89050.0,89049.0,0.08544032]
[1764961680359,0.00138733,89050.0,89049.0,0.11027354]
[1764961680549,0.00138733,89050.0,89049.0,0.10627354]
[1764961681066,0.00138733,89050.0,89049.0,0.10927354]
[1764961681270,0.00138733,89050.0,89049.0,0.07049794]
[1764961681458,0.00138733,89050.0,89049.0,0.34473994]
[1764961681658,0.00138733,89050.0,89049.0,0.3222804]
[1764961682292,0.05063659,89106.0,89049.0,0.3222804]
[1764961682293,0.01142586,89080.0,89049.0,0.3222804]
[1764961682474,0.0002,89080.0,89069.0,0.24648739]
[1764961682727,0.0002,89080.0,89069.0,0.24810026]
[1764961682972,0.0002,89080.0,89069.0,0.22615788]
[1764961683202,0.01142586,89080.0,89069.0,0.24810026]
[1764961683427,0.0002,89080.0,89069.0,0.24810026]
[1764961683641,0.00831902,89070.0,89069.0,0.24810026]
[1764961683854,0.00831902,89070.0,89069.0,0.2728072]
[1764961684067,0.00131902,89070.0,89069.0,0.2728072]
[1764961684288,0.00831902,89070.0,89069.0,0.25086482]
[1764961684960,0.00831902,89070.0,89069.0,0.2728072]
[1764961685095,0.23286151,89070.0,89069.0,0.02631981]
[1764961685300,0.23286151,89070.0,89069.0,0.02470694]
[1764961685485,0.011228,89063.0,89058.0,0.22457275]
[1764961685834,0.011228,89063.0,89055.0,0.01788]
[1764961685835,0.23579079,89062.0,89060.0,0.02194238]
[1764961686188,0.22456518,89061.0,89060.0,0.02194238]
[1764961686630,0.23579081,89062.0,89060.0,0.02194238]
[1764961686998,0.22456518,89061.0,89060.0,0.02194238]
[1764961687200,0.23579081,89062.0,89060.0,0.09294581]
[1764961687404,0.23579081,89062.0,89060.0,0.09894581]
[1764961687609,0.22456518,89061.0,89060.0,0.10194581]
[1764961687846,0.22456518,89061.0,89060.0,0.09594581]
[1764961688108,0.23579236,89062.0,89060.0,0.09594581]
[1764961688307,0.23578666,89064.0,89063.0,0.02194238]
[1764961688780,0.22454858,89068.0,89065.0,0.02194238]
[1764961688982,0.22455078,89067.0,89066.0,0.02194238]
[1764961689384,0.22455078,89067.0,89066.0,0.07209588]
[1764961690355,0.23155078,89067.0,89066.0,0.07209588]
[1764961690750,0.22455816,89064.0,89062.0,0.1488]